Cogmind - Beta 16 @@@ ROGUE MODE // 2025.10.29 @ 22:12:20 Player: shapeshifter Result: Destroyed by D-53 Grenadier with Mini Grenade Launcher Performance ------------- Evolutions (0) 0 Regions Visited (2) 400 Robots Destroyed (5) 25 Value Destroyed (55) 55 Prototype IDs (1) 20 Alien Tech Used (0) 0 Bonus (0) 0 TOTAL SCORE: 500 Bonus ------- None Cogmind --------- Core Integrity 0/250 Matter 260/300 Energy 12/100 System Corruption 6% Temperature Cool (0) Movement Rolling (100) Location -10/Mines Parts ------- > --- POWER (1) -------- (None) > --- PROPULSION (2) --- Compact Wheel > --- UTILITY (2) ------ Small Storage Unit Improved Terrain Scanner > --- WEAPON (2) ------- (None) > --- INVENTORY (8) ---- Light Ion Engine AS-neutralizer No. 17b EM Pulse Gun Peak State ------------ > --- POWER ------------ Ion Engine > --- PROPULSION ------- Wheel Compact Wheel > --- UTILITY ---------- Small Storage Unit AS-neutralizer No. 17b > --- WEAPON ----------- (None) > --- INVENTORY -------- Light Ion Engine Light Treads Light Treads Compact Wheel Improved Terrain Scanner EM Pulse Gun [Rating: 9] Favorites ----------- Power Ion Engine Engine Ion Engine Propulsion Light Treads Treads Light Treads Wheel Compact Wheel Utility Small Storage Unit Device Seismic Detector Storage Small Storage Unit Weapon Medium Laser Energy Gun Medium Laser Build | -11 -10 -10 ------- Run | Yrd Mat Min Slots Evolved . | . . . Power . | . . . Propulsion . | . . . Utility . | . . . Weapon . | . . . Parts Attached 12 | 7 . 5 Power 1 | 1 . . Engine 1 | 1 . . Core . | . . . Reactor . | . . . Propulsion 5 | 2 . 3 Treads 2 | 2 . . Leg . | . . . Wheel 3 | . . 3 Hover . | . . . Flight . | . . . Utility 4 | 2 . 2 Device 3 | 1 . 2 Storage 1 | 1 . . Processor . | . . . Hackware . | . . . Protection . | . . . Artifact . | . . . Weapon 2 | 2 . . Energy Gun 2 | 2 . . Energy Cannon . | . . . Ballistic Gun . | . . . Ballistic Cannon . | . . . Launcher . | . . . Special Weapon . | . . . Impact Weapon . | . . . Slashing Weapon . | . . . Piercing Weapon . | . . . Special Melee Weapon . | . . . Unidentified Prototypes 1 | . . 1 Parts Lost 8 | . . 8 Power 1 | . . 1 Propulsion 4 | . . 4 Utility 1 | . . 1 Weapon 2 | . . 2 Highest Loss Streak 8 | . . 8 To Critical Strikes . | . . . Average Backups 5 | 4 6 5 Power . | . 1 1 Propulsion 2 | 2 3 2 Utility . | . 1 1 Weapon . | . 1 1 Tool/Special . | . . . Unused Backups 3 | 1 . 2 Power 1 | . . 1 Propulsion 1 | 1 . . Utility . | . . . Weapon 1 | . . 1 Tool/Special . | . . . Average Slot Usage (%) 93 | . 100 85 Engine 12 | . 14 10 Treads 24 | . 28 20 Wheel 2 | . . 5 Device 13 | . 14 12 Storage 14 | . 14 14 Energy Gun 24 | . 28 20 Peak Build Rating 9 | 7 7 9 Average Rating 6 | 4 7 6 On Entrance 4 | . 7 7 Avg Prop Armor Cover (%) . | . . . Naked Turns . | . . . Heaviest Build 16 | 15 15 16 Greatest Support 40 | 40 40 40 Greatest Overweight (x) . | . . . Average Overweight (x) . | . . . Largest Inventory Capacity 8 | 8 8 8 Average Capacity 7 | 7 8 8 Most Carried 7 | 7 6 7 Average Carried 5 | 4 6 5 Final Capacity 8 | 8 8 8 Final Carried 6 | 6 6 3 Class Distribution -------------------- 100% | Mutant Dominant Class ---------------- Mutant | -10/Materials Mutant | -10/Mines Resources | -11 -10 -10 ----------- Run | Yrd Mat Min Matter Collected 295 | 270 . 25 Remotely . | . . . Salvage Created 197 | 148 49 . Parts 9 | 9 . . Haulers Intercepted . | . . . Recyclers Shooed 1 | 1 . . Parts Field Recycled . | . . . Retrieved Matter . | . . . Parts Self-Destructed . | . . . Prevented . | . . . Parts Restored . | . . . Kills | -11 -10 -10 ------- Run | Yrd Mat Min Combat Hostiles Destroyed 1 | . 1 . Classes Destroyed 4 | 3 1 . Worker 1 | 1 . . Tunneler 2 | 2 . . Recycler 1 | 1 . . Grunt 1 | . 1 . Best Kill Streak 3 | 3 1 . Combat Bots Only 1 | . 1 . Max Kills in Single Turn 1 | 1 1 . Gunslinging . | . . . Exploded . | . . . Melee . | . . . Uniques/NPCs Destroyed . | . . . Combat | -11 -10 -10 -------- Run | Yrd Mat Min Hostile Shots Fired 67 | . 13 54 Missed 17 | . 4 13 Hits 50 | . 9 41 Melee 4 | . . 4 Projectile 46 | . 9 37 AOE 11 | . . 11 Damage Taken 987 | . 99 888 Core 288 | . 52 236 Absorbed by Shields . | . . . Core Remaining (%) 100 | 100 . . Volleys Fired 17 | 9 7 1 Largest 2 | 2 2 2 Hottest 100 | 100 100 100 Shots Fired 34 | 18 14 2 Gun 34 | 18 14 2 Cannon . | . . . Launcher . | . . . Special . | . . . Kinetic . | . . . Thermal 34 | 18 14 2 Explosive . | . . . Electromagnetic . | . . . Robot Hit Streak 5 | 5 4 1 Robot Miss Streak 1 | 1 1 1 Penetration Max . | . . . Secondary Targets . | . . . Shots Hit Robots 21 | 10 10 1 Core Hits 8 | 5 2 1 Critical Kills . | . . . Critical Parts Destroyed . | . . . Critical Strikes 2 | . 2 . Burn 2 | . 2 . Melee Attacks . | . . . Impact . | . . . Slashing . | . . . Piercing . | . . . Sneak Attacks . | . . . Combat Hostiles . | . . . Follow-up Attacks . | . . . Damage Inflicted 288 | 150 126 12 Guns 288 | 150 126 12 Cannons . | . . . Explosions . | . . . Melee . | . . . Ramming . | . . . Kinetic . | . . . Thermal 288 | 150 126 12 Explosive . | . . . Electromagnetic . | . . . Impact . | . . . Slashing . | . . . Piercing . | . . . Highest Corruption 6 | . . 6 Average Corruption 5 | . . 5 Corruption Purged . | . . . Corruption Blocked . | . . . Effects 2 | . . 2 Message Errors 1 | . . 1 Heat Flow Errors 1 | . . 1 Overload Shots . | . . . Overflow Damage . | . . . Projectiles . | . . . Explosions . | . . . Melee . | . . . Knockbacks . | . . . Impact . | . . . Kinetic . | . . . Secondary . | . . . Self-Inflicted Damage . | . . . Shots . | . . . Rammed . | . . . Targets Rammed . | . . . Kicked . | . . . Crushed . | . . . Highest Temperature 117 | 117 90 79 Average Temperature 39 | 44 35 29 Received Heat Transfer 94 | . 54 40 Siege Activations . | . . . Martial Activations . | . . . Shielding Activations . | . . . Robots Disrupted . | . . . Combat Hostiles . | . . . Robots Corrupted . | . . . Combat Hostiles . | . . . Parts Fried . | . . . Impact Corruptions . | . . . Robots Melted 1 | . 1 . Combat Hostiles 1 | . 1 . Parts Melted 4 | 2 2 . Heat Transferred 999 | 444 518 37 Parts Sabotaged . | . . . Parts Stolen . | . . . Parts Stripped . | . . . Power Chain Reactions . | . . . Alert | -11 -10 -10 ------- Run | Yrd Mat Min Maximum Alert Level . | . . . Low Security (%) 100 | 100 100 100 Level 1 . | . . . Level 2 . | . . . Level 3 . | . . . Level 4 . | . . . Level 5 . | . . . High Security . | . . . Max Security . | . . . Peak Influence 65 | 10 65 21 Initial 21 | . . 21 Average 8 | 1 18 5 Influence Increases 104 | 20 84 . Destroy 0b10 Robot/C 20 | . 20 . Destroy 0b10 Robot/NC 20 | 20 . . Destroy Leader 10 | . 10 . Successful Hack 9 | . 9 . Select Force Hacks 30 | . 30 . Lose Combat Pursuer 15 | . 15 . Influence Decreases 104 | 20 29 55 Entered New Map 34 | . . 34 Time Decay 70 | 20 29 21 Squads Dispatched 2 | . 2 . Investigation 1 | . 1 . Extermination . | . . . Reinforcement 1 | . 1 . Assault . | . . . Garrison . | . . . Intercept . | . . . Searches Triggered . | . . . Construction Impeded . | . . . Haulers Reinforced . | . . . Active Scanning Responses . | . . . Cargo Convoy Interrupts . | . . . Stealth | -11 -10 -10 --------- Run | Yrd Mat Min Distress Signals . | . . . Communications Jammed . | . . . Distress Signals . | . . . Times Spotted 22 | . 6 16 Peak Tracking Total 13 | . 2 13 Tactical Retreats 2 | . 1 1 Traps | -11 -10 -10 ------- Run | Yrd Mat Min Traps Triggered . | . . . Indirectly . | . . . Trap Hack Attempts . | . . . Triggered . | . . . Disarmed . | . . . Reprogrammed . | . . . Reused . | . . . Traps Extracted . | . . . Installed . | . . . Triggered . | . . . Machines | -11 -10 -10 ---------- Run | Yrd Mat Min Machines Disabled . | . . . Max in Single Turn . | . . . Machines Repaired . | . . . Machines Dismantled . | . . . Machines Sabotaged . | . . . Overloaded Fab Kills . | . . . Hacking | -11 -10 -10 --------- Run | Yrd Mat Min Machines Accessed 2 | . 2 . Terminals 1 | . 1 . Fabricators . | . . . Repair Stations . | . . . Recycling Units 1 | . 1 . Scanalyzers . | . . . Garrison Access . | . . . Total Hacks 7 | . 7 . Successful 4 | . 4 . Failed 3 | . 3 . Catastrophic . | . . . Database Lockouts . | . . . Manual 3 | . 3 . Terminals 4 | . 4 . Fabricators . | . . . Repair Stations . | . . . Recycling Units 3 | . 3 . Scanalyzers . | . . . Garrison Access . | . . . Terminal Hacks 1 | . 1 . Zone Layout 1 | . 1 . Fabricator Hacks . | . . . Repair Station Hacks . | . . . Recycling Unit Hacks 1 | . 1 . Retrieve Components 1 | . 1 . Scanalyzer . | . . . Garrison Access Hacks . | . . . Unauthorized Hacks 2 | . 2 . Terminals 1 | . 1 . Skim 1 | . 1 . Fabricators . | . . . Repair Stations . | . . . Recycling Units 1 | . 1 . Tunnel 1 | . 1 . Scanalyzers . | . . . Garrison Access . | . . . Data Cores Recovered . | . . . Used . | . . . Hacking Detections 2 | . 2 . Full Trace Events . | . . . Feedback Events . | . . . Feedback Blocked . | . . . Robot Schematics Acquired . | . . . Robots Built . | . . . Authchips . | . . . Time . | . . . Total Robot Build Rating . | . . . Part Schematics Acquired . | . . . Parts Built . | . . . Authchips . | . . . Time . | . . . Total Part Build Rating . | . . . Part Studies Acquired . | . . . Parts Repaired . | . . . Time . | . . . Parts Recycled . | . . . Recycled Matter . | . . . Retrieved Matter . | . . . Retrieved Components 1 | . 1 . Parts Scanalyzed . | . . . Part Schematics Acquired . | . . . Parts Damaged . | . . . Bothacking | -11 -10 -10 ------------ Run | Yrd Mat Min Used RIF Installer . | . . . Robots Hacked . | . . . Non-combat . | . . . Combat . | . . . Robot Hacks Applied . | . . . Relay Couplers Released . | . . . Fabnet Peak Effective % . | . . . Robots Rewired . | . . . Allies Hacked . | . . . Hacks Repelled . | . . . Allies | -11 -10 -10 -------- Run | Yrd Mat Min Total Allies . | . . . Largest Group . | . . . Highest-Rated Group . | . . . Highest-Rated Ally . | . . . Total Orders . | . . . Ally Attacks . | . . . Total Damage . | . . . Kills . | . . . Allies Corrupted . | . . . Allies Melted . | . . . Intel | -11 -10 -10 ------- Run | Yrd Mat Min Active Infowar (turns) 251 | 34 130 87 Terrain 1 | . . 1 Seismic 250 | 34 130 86 Robot Analysis Total . | . . . Derelict Logs Recovered . | . . . Drone Launches . | . . . Drone Recoveries . | . . . Exploration | -11 -10 -10 ------------- Run | Yrd Mat Min Turns Passed 402 | 153 130 119 Spaces Moved 196 | 73 57 66 Core 10 | 10 . . Treads 163 | 63 57 43 Legs . | . . . Wheels 23 | . . 23 Hover . | . . . Flight . | . . . Fastest Speed 50 | 50 160 90 Average Speed 146 | 144 160 137 Slowest Speed 160 | 160 160 160 Overloaded Moves . | . . . Propulsion Burnouts . | . . . Robots Hopped . | . . . Potential Cave-ins . | . . . Cave-ins Triggered . | . . . Exploration Rate (%) 12 | 4 12 21 Regions Visited 2 Branch Regions 1 Pre-discovered Areas 1 | . 1 . Known Exits Taken . | . . . Unknown Exits Taken 2 | 1 1 . Scrap Searched 1 | . . 1 Spaces Dug . | . . . Terrain Destroyed . | . . . Melee . | . . . Projectile . | . . . AOE . | . . . Terrain Rammed . | . . . Walls Destroyed . | . . . Machines Disabled . | . . . Actions | -11 -10 -10 --------- Run | Yrd Mat Min Total 276 | 103 82 91 Wait 32 | . 19 13 Move 194 | 72 56 66 Hop . | . . . Pick Up 15 | 14 . 1 Fast Attach . | . . . Attach 12 | 7 . 5 Detach 1 | . . 1 Swap 4 | . . 4 Drop 1 | 1 . . Fire 17 | 9 7 1 Melee . | . . . Ram . | . . . Kick . | . . . Crush . | . . . Escape Stasis . | . . . Rewire . | . . . Trap . | . . . Miscellaneous . | . . . Route ------- -11/Scrapyard -10/Materials -10/Mines History --------- Turn | Location | Event 6 | -11/Scrapyard | Discovered new exit (range 16) 154 | -11/Scrapyard | Entered Materials 211 | -10/Materials | Discovered new exit (range 16) 284 | -10/Materials | Entered Mines 307 | -10/Mines | Build established: Mutant 331 | -10/Mines | Assembled infested the area 354 | -10/Mines | Met 8R-AWN 373 | -10/Mines | Found Prototype Device 374 | -10/Mines | Identified AS-neutralizer No. 17b 375 | -10/Mines | Core integrity fell below 50% 394 | -10/Mines | Core integrity fell below 20% 403 | -10/Mines | Destroyed by D-53 Grenadier with Mini Grenade Launcher Last Messages --------------- 00379_ as-76809 powers down. 00379_ as-51236 powers down. 00379_ as-25562 powers down. 00379_ as-98856 powers down. 00380_ System corrupted: Heat flow error (+104). 00381_ Acquired 10 matter. 00386_ as-25562 destroyed. 00386_ as-98856 destroyed. 00388_ as-92420 destroyed. 00388_ Com. Wheel destroyed. 00388_ as-76809 destroyed. 00388_ as-78950 destroyed. 00389_ K-01 Serf collects debris. 00390_ as-51236 destroyed. 00392_ K-01 Serf collects debris. 00397_ Lgt. Treads destroyed. 00399_ 6DE0OEH2UFKTSRSK8H1EWMZ<55|GQW>QKNWC%8I 00399_ K-01 Serf collects debris. 00401_ Lgt. Treads destroyed. 00401_ D-53 Grenadier destroyed. Map ----- +----------------------------------------------------+ | ?????????????????????????????????????????????????? | | ?????????????????????????????????????????????????? | | ?????????????????????????????????????????????????? | | ?????????????????????????????????????????????????? | | ?????????????????????????????????????????????????? | | ?????????????????????????????????????????????????? | | ?????????????????????????????????????????????????? | | ?????????????????????????????????????????????????? | | ?????????????????????????????????????????????????? | | ?????????????????????????????????????????????????? | | ?????????????????????????????????????? ?????????? | | ????????????????????##??????????????? ?????????? | | ???????????????????# #???##????????? ?????????? | | ???????????????????] u #??# ????????? #?????????? | | ??????????????????? !! ??# ????????? #?????????? | | ??????????????????? ??# ????????? #?????????? | | ???????????????????# ??# ?#####??? #?????????? | | ????????????????????# / ### ## ##?? #?????????? | | ?????????????????????# ! ### #?????????? | | ????????????????????##[ % ## #?????????? | | ???????????????????## ## #?????????? | | ?????????????????### # ##??????### | | ?????????????????# ## #?????## | | ?????????????????# k### #?????# | | ???????????????????# d ## #????## | | ??????????????????## @ ## #????# | | ?????????????????## ##%/##????# | | ?????????????????# % ;#%######## # | | ?????????????????## ##/ # | | ????????????????? ## | | ????????????????## ############# | | ????????????????# #???????????### | | ????????????????# ##?????????????? | | ????????????????# %%< ##??????????????? | | ????????????????#### ## ##???????????????? | | ???????????????????##?## #####????????????????? | | ???????????????????????######????????????????????? | | ?????????????????????????????????????????????????? | | | | | | | | | | | | | | | | | | | | | | | | | +----------------------------------------------------+ Best States ------------- Heat Dissipation 25 Energy Generation 10 Energy Capacity 250 Matter Stores 300 Matter Capacity 300 Sight Range 16 Terrain Scan Density 10 Evasion (%) 50 Recoil Reduction 2 Item Schematics ----------------- None Robot Schematics ------------------ None Fabricated ------------ Nothing Repaired ---------- Nothing Studied --------- None Alien Tech Used ----------------- None Achievements -------------- None Challenges ------------ None Game ------ Seed ShockAssaultTriangulator Manual? 0 Play Time 00:06:30 Cumulative 444.8 hours Start 2025.10.29 @ 10:52:54 End 2025.10.29 @ 22:12:20 Sessions 2 Manual Loads 0 Difficulty Rogue Special Mode None Game No. 563 Rogue 563 Adventurer 0 Explorer 0 Win Type - Total 14 Types 6/0/2/2/1/0/2/1/0/0 Lore% 90 Gallery% 84 Achievement% 60 Wizard Run 0 Options --------- Layout 0 ASCII 0 Keyboard 0 Movement Mouse Keybinds 0 Fullscreen 1 Font 24/Terminus Map View 76x50 Zoom Use 0% Tactical HUD 1 Map Filters NONE Filters NONE Steam 1 RUN: 1f54c5b5-3fd9-495c-a425-75427011524d